bitfinex/quotes_ETHUSD_20240715
["timestamp","ask_amount","ask_price","bid_price","bid_amount"]
[1721006276431,2.3379,3298.4,3297.2,0.55]
[1721006276625,2.3379,3298.4,3297.3,0.06063741]
[1721006277078,2.65557696,3298.4,3297.3,0.06063741]
[1721006277530,2.65557696,3298.4,3297.4,3.2794]
[1721006277732,0.31767696,3298.4,3297.6,2.72917]
[1721006277932,2.4837,3299.1,3297.9,2.72898]
[1721006278168,2.4837,3299.1,3298.0,0.61062241]
[1721006278372,2.4837,3299.1,3298.0,0.55]
[1721006278373,0.31764525,3299.0,3298.0,0.55]
[1721006278679,0.31764525,3299.0,3297.7,3.06062373]
[1721006278680,0.61165228,3299.0,3297.7,3.06062373]
[1721006278973,0.61165228,3299.0,3297.8,0.06062732]
[1721006279133,0.61165228,3299.0,3297.8,2.78969732]
[1721006279859,0.61165228,3299.0,3297.7,2.78979554]
[1721006280028,0.61165228,3299.0,3297.8,0.63960671]
[1721006280670,0.31764525,3299.0,3297.8,0.63960671]
[1721006280973,0.31764525,3299.0,3298.0,2.72891]
[1721006281140,0.31764525,3299.0,3298.1,0.06062272]
[1721006281343,0.13872504,3299.2,3298.2,2.379]
[1721006281573,0.13872504,3299.2,3298.6,2.72835]
[1721006281864,0.13872504,3299.2,3298.7,0.40005547]
[1721006282068,0.13872504,3299.2,3298.5,0.06061104]
[1721006282278,0.13872504,3299.2,3298.1,2.7894186]
[1721006282279,8.027189,3299.1,3298.1,2.7894186]
[1721006282458,0.13872504,3299.2,3298.1,0.0606265]
[1721006282639,0.13872504,3299.2,3298.2,2.72875]
[1721006282841,0.13872504,3299.2,3298.5,2.72844]
[1721006283034,0.13872504,3299.2,3298.6,0.33345583]
[1721006283339,0.13872504,3299.2,3298.9,2.72811]
[1721006283750,0.13872504,3299.2,3298.6,2.72842]
[1721006284069,0.13872504,3299.2,3298.8,2.78880997]
[1721006284274,0.13872504,3299.2,3298.7,3.0]
[1721006284475,0.13872504,3299.2,3298.6,2.72842]
[1721006284658,0.13872504,3299.2,3298.7,3.272842]
[1721006285054,0.13872504,3299.2,3298.5,3.0]
[1721006285273,0.13872504,3299.2,3297.9,5.20049]
[1721006285274,2.44922504,3299.2,3298.3,3.0]
[1721006285438,2.44922504,3299.2,3298.0,0.06061695]
[1721006285837,2.44922504,3299.2,3298.0,2.78947695]
[1721006286039,0.13872504,3299.2,3298.3,2.72866]
[1721006286247,0.13872504,3299.2,3298.4,0.33348233]
[1721006286449,0.13872504,3299.2,3298.6,2.72841]
[1721006286640,0.13872504,3299.2,3298.6,0.06061113]
[1721006286949,2.3051,3299.0,3297.8,0.57897955]
[1721006287150,0.13872504,3299.2,3297.4,0.06062553]
[1721006287540,0.13872504,3299.2,3297.6,2.72923]
[1721006287767,2.2715,3299.1,3297.6,0.06062665]
[1721006287968,0.06072276,3299.0,3297.2,2.72958]
[1721006288172,2.2715,3299.1,3297.2,2.72958]
[1721006288343,0.13872504,3299.2,3296.9,0.06063677]
[1721006288344,2.4121,3298.9,3296.9,0.06063677]
[1721006288544,2.4121,3298.7,3296.8,0.06064393]
[1721006288783,2.4121,3298.7,3297.2,2.72954]
[1721006288950,2.4121,3298.7,3297.1,0.06060289]
[1721006289274,2.47282276,3298.7,3296.7,2.72996]
[1721006289485,0.24728228,3298.6,3296.8,3.33363824]
[1721006289645,3.24728228,3298.6,3296.8,0.272996]
[1721006289970,0.06072276,3298.5,3296.8,0.272996]
[1721006290176,2.2872,3298.4,3296.4,2.79084737]
[1721006290378,2.2872,3298.4,3295.8,2.3281]
[1721006290379,2.34792276,3298.4,3296.3,2.73032]
[1721006290543,0.55,3298.3,3296.5,0.06064819]
[1721006290738,2.49912276,3298.2,3296.2,0.06062756]
[1721006290942,0.55,3298.1,3295.9,2.79130417]
[1721006291137,0.60491228,3298.0,3296.0,3.00966042]
[1721006291341,3.0,3298.1,3296.2,2.73037]
[1721006291536,2.4384,3298.2,3296.3,0.06065512]
[1721006291783,0.55,3298.1,3296.4,0.06065616]
[1721006291965,3.0,3298.1,3296.4,0.06065616]
[1721006292140,2.4384,3298.2,3296.5,2.73016]
[1721006292341,2.4384,3298.2,3296.6,0.27908162]
[1721006292342,0.24384,3298.1,3296.6,0.27908162]
[1721006292541,0.24384,3298.1,3296.6,0.3397322]
[1721006292542,3.24384,3298.1,3296.6,0.3397322]
[1721006292978,3.24384,3298.1,3296.7,0.06065059]
[1721006293541,3.24384,3298.1,3296.6,3.00915162]
[1721006293542,3.24384,3298.1,3296.8,0.0606506]
[1721006293851,3.24384,3298.1,3296.6,0.27908162]
[1721006294058,0.62894676,3298.0,3296.1,5.73049]
[1721006294364,2.3372,3297.9,3296.0,2.73058]
[1721006294564,0.06072276,3297.8,3296.0,2.73058]
[1721006295456,5.3372,3297.9,3296.1,3.0]
[1721006295657,0.99126516,3297.8,3296.2,0.573058]
[1721006295968,3.9305424,3297.8,3296.2,0.573058]
[1721006296795,0.31777758,3297.7,3296.2,0.573058]
[1721006297001,0.31777758,3297.7,3295.9,3.0]
[1721006297002,2.2946,3297.6,3295.9,3.0]
[1721006297153,2.2946,3297.5,3295.6,2.79156888]
[1721006297354,2.3425,3297.4,3295.4,2.73107]
[1721006297663,2.3425,3297.4,3295.2,2.73122]
[1721006297664,2.3425,3297.2,3295.5,0.27917389]
[1721006297895,2.3425,3297.2,3295.2,2.73122]
[1721006297896,3.4,3297.0,3295.2,2.73122]
[1721006298062,3.4,3297.0,3295.1,2.7313]
[1721006298063,5.40322276,3296.9,3295.1,2.7313]
[1721006299215,2.3866,3296.8,3294.8,2.73157]
[1721006299489,2.3866,3296.8,3294.2,2.73199]
[1721006299490,2.3866,3296.3,3294.2,2.73199]
[1721006299705,2.3866,3296.3,3294.3,3.06586129]
[1721006299881,5.3866,3296.3,3294.5,2.73174]
[1721006300052,0.06072276,3296.2,3294.3,0.273199]
[1721006300258,5.3866,3296.3,3294.4,0.0606953]
[1721006300259,5.44732276,3296.3,3294.4,0.0606953]
[1721006300513,2.3866,3296.3,3294.4,0.0606953]
[1721006300801,2.3866,3296.3,3295.0,2.7314]
[1721006300966,2.3866,3296.3,3295.1,0.06068189]
[1721006301371,2.3866,3296.3,3295.3,2.73115]
[1721006301690,2.3866,3296.3,3295.4,0.273115]
[1721006302056,2.3866,3296.3,3294.8,2.73152]
[1721006302057,9.629416,3296.2,3294.7,2.73159]
[1721006302257,2.3866,3296.3,3294.9,2.73143]
[1721006302460,2.3866,3296.3,3295.0,0.0606857]
[1721006302661,2.3866,3296.3,3295.2,2.73122]
[1721006302861,2.3866,3296.3,3294.6,5.73168]
[1721006302862,2.3866,3296.3,3295.6,2.73084]
[1721006303085,2.3866,3296.3,3295.2,2.73122]
[1721006303086,6.917205,3296.2,3295.2,2.73122]
[1721006303308,2.3866,3296.3,3295.2,2.73122]
[1721006303468,2.3866,3296.3,3295.3,0.06066973]
[1721006303679,2.3866,3296.3,3295.4,2.73101]
[1721006303865,2.4179,3297.4,3296.0,2.73057]
[1721006304065,9.871206,3297.3,3296.0,2.73057]
[1721006304263,9.629416,3297.2,3296.0,2.73057]
[1721006304809,0.24179,3297.3,3296.1,0.06066512]
[1721006304962,9.629416,3297.2,3296.0,2.73057]
[1721006305159,0.24179,3297.3,3296.1,0.06066511]
[1721006305391,0.265969,3297.2,3296.1,0.33978862]
[1721006305697,2.4179,3297.4,3296.1,0.33978862]
[1721006305992,2.4179,3297.4,3296.1,3.07026862]
[1721006306204,2.4179,3297.4,3296.4,2.73024]
[1721006306792,2.4179,3297.4,3296.3,2.73031]
[1721006307399,2.4179,3297.4,3296.4,2.73024]
[1721006307600,2.4179,3297.4,3296.4,3.003264]
[1721006307774,0.31777758,3297.7,3296.4,3.003264]
[1721006307775,0.31777758,3297.7,3296.5,0.06065816]
[1721006307973,0.31777758,3297.7,3296.9,2.72977]
[1721006308177,0.31777758,3297.7,3297.0,0.06064964]
[1721006308565,2.3254,3297.9,3297.2,2.72957]
[1721006308895,0.31771526,3297.8,3297.3,0.33360208]
[1721006309103,0.31771526,3297.8,3297.3,0.272957]
[1721006309302,0.31771526,3297.8,3296.4,3.0]
[1721006309303,2.3097,3298.7,3297.8,2.72904]
[1721006309467,0.31768022,3298.5,3297.8,2.72904]
[1721006309668,6.149723,3298.4,3297.4,2.72939]
[1721006309872,0.06072276,3298.3,3297.2,7.43]
[1721006310078,10.25046058,3298.2,3297.2,7.43]
[1721006310375,0.62104458,3298.2,3297.3,2.79008838]
[1721006310598,0.62104458,3298.2,3297.2,7.43]
[1721006310599,9.629416,3298.1,3297.2,7.43]
[1721006310909,9.629416,3298.4,3297.2,7.43]
[1721006311287,0.31768022,3298.5,3297.3,2.79011688]
[1721006311488,0.31768022,3298.5,3297.7,2.72917]
[1721006311809,7.339145,3298.4,3297.5,2.72932]
[1721006311974,0.31768022,3298.5,3297.5,3.281265]
[1721006312180,0.31768022,3298.5,3297.6,0.06063991]
[1721006312707,0.31768022,3298.5,3297.7,2.72911]
[1721006312882,0.31768022,3298.5,3297.8,2.7897059]
[1721006313219,0.13872504,3299.2,3298.1,2.72884]
[1721006313413,0.31764831,3298.9,3297.9,0.06062816]
[1721006313626,0.31764831,3298.9,3297.9,2.729]
[1721006313977,9.629416,3298.8,3297.5,3.281265]
[1721006314179,0.31764831,3298.9,3297.3,2.72948]
[1721006314379,2.4005,3298.8,3297.3,2.72948]
[1721006314610,0.47597793,3298.5,3297.3,2.72948]
[1721006315412,0.47597793,3298.5,3297.2,10.15956]
[1721006315583,0.06072276,3298.4,3297.2,10.15956]
[1721006315779,0.06072276,3298.4,3297.2,7.43]
[1721006315979,0.47597793,3298.5,3297.4,2.72941]
[1721006316205,0.47597793,3298.5,3297.5,0.06063859]
[1721006316408,0.47597793,3298.5,3297.6,2.72919]
[1721006316591,0.47597793,3298.5,3297.6,2.78982846]
[1721006316913,0.47597793,3298.5,3297.9,2.72899]
[1721006317121,0.47597793,3298.5,3298.0,0.272899]
[1721006317821,0.47597793,3298.5,3298.0,2.72891]
[1721006317995,0.47597793,3298.5,3297.5,2.72932]
[1721006318202,0.47597793,3298.5,3297.7,2.72911]
[1721006318405,0.47597793,3298.5,3297.5,2.72927]
[1721006318602,0.47597793,3298.5,3297.6,2.72925]
[1721006318787,0.47597793,3298.5,3297.7,0.272925]
[1721006319392,0.47597793,3298.5,3297.9,2.729]
[1721006319586,0.47597793,3298.5,3298.0,0.06063423]
[1721006319800,0.47597793,3298.5,3298.0,2.72889]
[1721006320122,0.47597793,3298.5,3297.8,2.789719]
[1721006320123,0.47597793,3298.5,3297.8,2.72909]
[1721006320297,0.47597793,3298.5,3297.8,3.274923]
[1721006320690,0.47597793,3298.5,3297.8,0.545833]
[1721006321019,0.47597793,3298.5,3297.8,2.72908]
[1721006321527,0.47597793,3298.5,3297.9,2.72899]
[1721006322029,0.47597793,3298.5,3298.0,2.7289]
[1721006322320,0.47597793,3298.5,3298.4,5.45718]
[1721006322623,0.47597793,3298.5,3298.4,8.51773776]
[1721006322811,0.13872504,3299.2,3298.7,2.72829]
[1721006323118,0.13872504,3299.2,3298.8,0.06061857]
[1721006323312,0.47585074,3299.1,3298.8,0.06061857]
[1721006324125,0.47585074,3299.1,3298.8,0.06061939]
[1721006325527,0.47585074,3299.1,3298.8,2.72819]
[1721006325823,0.47585074,3299.1,3299.0,2.72809]
[1721006326636,0.47585074,3299.1,3299.0,5.45618]
[1721006326791,0.47585074,3299.1,3299.0,8.45618]
[1721006326990,0.13872504,3299.2,3299.1,2.72801]
[1721006327227,0.13872504,3299.2,3299.1,3.06061061]
[1721006327526,0.13872504,3299.2,3298.1,2.72884]
[1721006327527,2.94990804,3299.2,3298.1,2.72884]
[1721006327713,0.13872504,3299.2,3298.7,2.72827]
[1721006328295,0.13872504,3299.2,3298.4,2.72857]
[1721006328493,0.13872504,3299.2,3298.2,2.72869]
[1721006328714,0.13872504,3299.2,3298.4,2.72858]
[1721006328926,9.69013876,3299.1,3297.8,2.72907]
[1721006329145,0.13872504,3299.2,3297.9,2.72898]
[1721006329300,0.06072276,3299.1,3297.7,2.72913]
[1721006329642,0.06072276,3299.1,3297.8,2.72906]
[1721006329643,2.3348,3299.0,3297.8,2.72906]
[1721006329797,0.23955228,3298.9,3297.8,2.72906]
[1721006329995,0.23955228,3298.9,3297.9,0.06057976]
[1721006330218,2.3348,3299.0,3297.6,2.72917]
[1721006330393,2.3348,3299.0,3297.8,2.72908]
[1721006330597,2.3348,3299.0,3298.0,2.72891]
[1721006331235,2.3348,3299.0,3298.0,2.78954013]
[1721006331431,2.3348,3299.0,3297.6,2.72924]
[1721006331633,2.3348,3299.0,3297.5,3.0]
[1721006331634,0.29420276,3298.9,3297.5,3.0]
[1721006331935,0.29420276,3298.9,3296.8,1.829]
[1721006331936,0.23348,3298.9,3297.4,2.7294]
[1721006332141,0.23348,3298.9,3297.2,2.72957]
[1721006332142,0.06072276,3298.8,3297.2,2.72957]
[1721006332344,0.06072276,3298.8,3296.7,3.395]
[1721006332345,0.23348,3298.9,3298.1,2.72881]
[1721006332509,3.23348,3298.9,3298.1,2.72881]
[1721006332718,0.556828,3298.8,3297.9,2.729]
[1721006332916,9.629416,3298.7,3297.6,2.72925]
[1721006333215,0.556828,3298.8,3297.2,7.43]
[1721006333216,0.556828,3298.8,3297.7,2.72916]
[1721006333415,0.556828,3298.8,3297.5,0.06063769]
[1721006333624,3.23348,3298.9,3298.0,2.72885]
[1721006333927,9.629416,3298.8,3297.7,2.72915]
[1721006334134,3.23348,3298.9,3297.8,2.72906]
[1721006334634,3.23348,3298.9,3297.3,0.06063438]
[1721006334635,3.23348,3298.9,3297.3,1.88963438]
[1721006334812,0.13872504,3299.2,3298.0,2.72885]
[1721006335007,0.13872504,3299.2,3298.1,2.72882]
[1721006335222,0.13872504,3299.2,3298.2,2.78937996]
[1721006335398,0.13872504,3299.2,3298.3,0.06062844]
[1721006335605,0.45259754,3299.2,3298.3,0.06062844]
[1721006335847,0.45259754,3299.2,3297.7,2.4653]
[1721006335848,0.45259754,3299.2,3298.1,2.7288]
[1721006336341,0.45259754,3299.2,3298.2,2.78935813]
[1721006336504,0.13872504,3299.2,3298.5,2.72849]
[1721006336703,0.13872504,3299.2,3298.5,2.72845]
[1721006336905,0.13872504,3299.2,3298.4,2.72855]
[1721006337129,0.13872504,3299.2,3298.7,2.72828]
[1721006337616,0.13872504,3299.2,3298.6,2.72841]
[1721006337823,0.13872504,3299.2,3298.7,2.72833]
[1721006338002,0.13872504,3299.2,3298.8,2.72826]
[1721006338637,0.13872504,3299.2,3299.0,2.72809]
[1721006338942,0.13872504,3299.2,3299.1,2.72801]
[1721006339629,0.13872504,3299.2,3299.1,5.45602]
[1721006339803,0.13872504,3299.2,3299.1,11.73403]
[1721006340220,0.005,3299.8,3299.5,5.45536]
[1721006340459,0.005,3299.8,3299.5,9.273668]
[1721006340755,0.005,3299.8,3299.3,2.72785]
[1721006340756,0.48070866,3299.8,3299.3,2.72785]
[1721006341058,0.48070866,3299.8,3299.0,2.72809]
[1721006341220,0.48070866,3299.8,3299.4,2.72775]
[1721006341759,0.48070866,3299.8,3299.2,2.72788]
[1721006342052,0.48070866,3299.8,3299.2,2.72787]
[1721006342350,0.48070866,3299.8,3298.8,3.0]
[1721006342659,0.48070866,3299.8,3298.9,0.3]
[1721006342832,0.48070866,3299.8,3299.4,2.72774]
[1721006343163,0.48070866,3299.8,3299.5,5.51596802]
[1721006343316,0.48070866,3299.8,3299.5,8.51596802]
[1721006343634,0.48070866,3299.8,3299.5,11.18304]
[1721006343850,0.48070866,3299.8,3299.5,9.573664]
[1721006344134,0.48070866,3299.8,3299.5,12.851344]
[1721006344336,0.48070866,3299.8,3299.5,10.123664]
[1721006344717,0.48070866,3299.8,3299.5,12.530364]
[1721006345327,2.4665,3301.6,3299.5,12.530364]
[1721006345328,1.73053066,3301.7,3301.6,7.8586]
[1721006345541,5.20951,3304.0,3301.9,2.72567]
[1721006345740,5.20951,3304.0,3300.7,2.72668]
[1721006345741,5.730068,3302.3,3301.2,2.72627]
[1721006345919,2.2994,3302.6,3301.4,2.72604]
[1721006346115,2.2994,3303.2,3301.5,3.45557079]
[1721006346316,2.11769813,3304.0,3302.3,5.45074]
[1721006346562,0.019,3304.0,3302.3,11.84574]
[1721006346716,0.32790998,3302.4,3302.3,13.62474]
[1721006346916,0.32790998,3302.4,3302.3,16.90011]
[1721006347156,0.019,3304.0,3303.5,2.72435]
[1721006347334,0.35236042,3305.0,3304.0,1.829]
[1721006347568,0.35236042,3305.0,3304.9,2.72322]
[1721006347861,0.35236042,3305.0,3304.0,3.395]
[1721006348073,0.35236042,3305.0,3304.9,2.72322]
[1721006348259,4.2e-07,3305.0,3304.9,12.61144]
[1721006348453,4.2e-07,3305.0,3304.9,8.99644]
[1721006348633,4.2e-07,3305.0,3304.9,8.44644]
[1721006348841,4.2e-07,3305.0,3304.2,2.72378]
[1721006349079,4.2e-07,3305.0,3304.0,2.72396]
[1721006349300,0.02694662,3304.9,3304.4,2.72364]
[1721006349575,0.02694662,3304.9,3304.8,10.54953]
[1721006349576,6.62e-06,3304.9,3304.8,10.54953]
[1721006349748,4.2e-07,3305.0,3304.9,9.99866]
[1721006349955,4.2e-07,3305.0,3303.4,3.615]
[1721006350266,4.2e-07,3305.0,3303.1,2.3796]
[1721006350464,4.2e-07,3305.0,3303.2,0.55]
[1721006350776,4.2e-07,3305.0,3304.9,4.55222]
[1721006350981,4.2e-07,3305.0,3303.6,2.72425]
[1721006351227,4.2e-07,3305.0,3304.2,2.72373]
[1721006351396,4.2e-07,3305.0,3304.5,2.72348]
[1721006351682,4.2e-07,3305.0,3304.6,3.0]
[1721006351890,4.2e-07,3305.0,3304.9,7.27544]
[1721006352176,0.117552,3305.7,3305.0,1.829]
[1721006352398,0.117552,3305.7,3304.7,0.55]
[1721006352399,0.117552,3305.7,3304.6,5.44685]
[1721006352539,0.117552,3305.7,3304.3,3.0]
[1721006352540,2.840132,3305.7,3304.3,3.0]
[1721006352746,2.72284,3305.4,3303.7,2.72414]
[1721006353048,0.2840132,3305.6,3304.3,4.5527]
[1721006353284,0.117552,3305.7,3304.6,2.72347]
[1721006353463,0.117552,3305.7,3305.4,1.829]
[1721006353673,0.117552,3305.7,3305.6,1.829]
[1721006353886,0.117552,3305.7,3305.0,1.829]
[1721006354053,0.117552,3305.7,3303.9,2.72405]
[1721006354253,0.117552,3305.7,3304.3,5.44728]
[1721006354452,0.4015492,3305.7,3304.7,2.72339]
[1721006354661,0.117552,3305.7,3304.7,2.72338]
[1721006354995,0.117552,3305.7,3305.1,2.72306]
[1721006355205,0.117552,3305.7,3304.8,3.55]
[1721006355206,0.117552,3305.7,3304.9,2.72322]
[1721006355346,0.117552,3305.7,3305.2,2.72297]
[1721006355547,0.117552,3305.7,3305.0,3.0]
[1721006355855,0.117552,3305.7,3305.3,2.72286]
[1721006356256,0.117552,3305.7,3305.4,2.7228]
[1721006357264,0.117552,3305.7,3305.6,1.829]
[1721006357573,0.117552,3305.7,3305.2,1.829]
[1721006357770,0.117552,3305.7,3304.7,3.0]
[1721006357980,0.117552,3305.7,3303.7,5.28648]
[1721006358187,0.2840042,3305.6,3304.3,2.72371]
[1721006358368,2.72282,3305.4,3304.1,4.55288]
[1721006358579,2.72276,3305.5,3304.2,2.7238]
[1721006358795,0.2840042,3305.6,3303.6,2.72422]
[1721006359106,0.117552,3305.7,3303.5,2.72437]
[1721006359107,2.72347,3304.6,3303.5,2.72437]
[1721006359305,2.72308,3305.1,3303.6,2.72421]
[1721006359472,2.72324,3304.9,3303.7,2.72421]
[1721006360065,2.72348,3304.6,3303.2,2.72461]
[1721006360259,2.72347,3304.7,3303.2,2.72461]
[1721006360457,2.72379,3304.3,3302.8,1.829]
[1721006360664,2.72379,3304.3,3302.4,0.304]
[1721006360665,2.7237,3304.4,3303.2,1.829]
[1721006361367,2.7237,3304.4,3303.2,4.55355]
[1721006361562,0.518037,3304.6,3303.2,1.829]
[1721006361790,2.4569,3304.8,3303.0,1.829]
[1721006362007,2.72357,3304.5,3303.3,2.72447]
[1721006362182,2.72357,3304.5,3303.3,4.55347]
[1721006362580,2.72366,3304.4,3303.3,1.829]
[1721006362811,2.4569,3304.8,3303.1,1.829]
[1721006363025,2.72412,3303.9,3302.4,2.72528]
[1721006363308,2.72399,3304.0,3302.6,2.72511]
[1721006363812,2.72405,3303.9,3302.6,4.55411]
[1721006364128,3.24569,3304.7,3303.1,1.829]
[1721006364129,0.24569,3304.7,3303.1,1.829]
[1721006364285,2.7229,3305.3,3303.8,2.72413]
[1721006364484,2.3961,3305.5,3303.9,1.829]
[1721006364703,2.723,3305.2,3303.9,4.55303]
[1721006365067,5.11883,3305.5,3304.0,2.379]
[1721006365273,2.72284,3305.4,3304.1,4.55287]
[1721006365472,0.511894,3305.3,3304.4,1.829]
[1721006365706,5.11883,3305.5,3304.1,4.55286]
[1721006366302,2.7229,3305.3,3304.1,4.55286]
[1721006366703,0.117552,3305.7,3304.4,1.829]
[1721006366916,0.117552,3305.7,3304.6,1.829]
[1721006367107,0.117552,3305.7,3304.9,1.829]
[1721006367301,0.117552,3305.7,3304.9,4.55219]
[1721006367605,0.117552,3305.7,3305.0,4.55214]
[1721006368140,0.117552,3305.7,3305.2,4.55197]
[1721006368602,0.117552,3305.7,3305.4,1.829]
[1721006369025,2.72167,3306.8,3305.8,1.829]
[1721006369198,2.72167,3306.8,3305.3,3.0]
[1721006369199,2.72198,3306.5,3305.3,2.72289]
[1721006369402,1.89323623,3306.9,3306.1,2.4927]
[1721006369601,1.89323623,3306.9,3306.2,2.72214]
[1721006369916,1.89323623,3306.9,3306.3,3.0]
[1721006370114,1.89323623,3306.9,3306.6,1.829]
[1721006370344,3.93181895,3308.5,3306.3,3.55]
[1721006370345,2.71994,3308.9,3307.4,2.72109]
[1721006370545,1.81068859,3309.2,3307.5,3.55]
[1721006370747,2.71977,3309.1,3307.5,0.55]
[1721006370950,2.71995,3308.9,3307.2,2.72132]
[1721006371243,2.71995,3308.9,3306.9,3.0]
[1721006371244,1.81068859,3309.2,3307.6,1.829]
[1721006371453,1.81068859,3309.2,3307.9,4.54975]
[1721006371654,1.81068859,3309.2,3307.9,1.829]
[1721006371961,1.81068859,3309.2,3307.3,2.72118]
[1721006371962,2.72012,3308.7,3307.3,2.72118]
[1721006372253,1.81068859,3309.2,3307.4,3.0]
[1721006372452,1.81068859,3309.2,3307.0,2.72149]
[1721006372453,2.72018,3308.6,3307.0,2.72149]
[1721006372640,2.72046,3308.3,3307.1,0.55]
[1721006372827,2.72046,3308.3,3306.8,3.55]
[1721006373019,2.72046,3308.3,3307.0,2.72149]
[1721006373221,2.72046,3308.3,3307.2,1.829]
[1721006373458,2.72046,3308.3,3306.8,0.55]
[1721006373764,2.72046,3308.3,3307.0,3.0]
[1721006373968,2.72046,3308.3,3306.8,0.55]
[1721006374123,2.72046,3308.3,3307.1,1.829]
[1721006374323,2.72046,3308.3,3306.8,3.55]
[1721006374324,2.72046,3308.3,3306.9,2.72157]
[1721006374824,5.216902,3309.0,3306.6,3.615]
[1721006375019,3.0,3308.9,3306.7,6.27172]
[1721006375216,3.0,3308.9,3306.8,1.829]
[1721006375420,3.0,3308.9,3306.1,2.72216]
[1721006375621,3.0,3308.9,3305.6,6.33758]
[1721006375622,2.2752,3307.9,3305.6,3.615]
[1721006375843,0.22785611,3307.8,3305.6,6.33764]
[1721006376060,0.22785611,3307.8,3306.0,2.7223]
[1721006376238,0.22785611,3307.8,3306.1,1.829]
[1721006376456,0.22785611,3307.8,3306.0,1.829]
[1721006377529,0.22785611,3307.8,3305.9,1.829]
[1721006377757,0.25030561,3307.7,3305.9,1.829]
[1721006377919,0.25030561,3307.7,3306.4,4.55095]
[1721006378255,2.2752,3307.9,3306.4,2.72199]
[1721006378419,2.2752,3307.9,3306.4,1.829]
[1721006378827,2.2752,3307.9,3305.9,5.72233]
[1721006379048,0.117552,3309.0,3307.0,2.72148]
[1721006379257,0.117552,3309.0,3307.6,2.72097]
[1721006379462,0.117552,3309.0,3307.3,2.72125]
[1721006379648,0.117552,3309.0,3306.5,2.7219]
[1721006379649,9.629416,3307.9,3306.5,2.7219]
[1721006379956,0.117552,3309.0,3306.5,2.7219]
[1721006379957,3.27717771,3307.8,3306.5,2.7219]
[1721006380280,2.3139,3307.8,3306.5,2.7219]
[1721006380557,2.3139,3307.8,3306.5,4.5509]
[1721006380720,2.3139,3307.8,3306.3,2.72206]
[1721006380924,2.3139,3307.8,3306.5,2.72188]
[1721006381525,2.3139,3307.8,3306.2,5.72215]
[1721006381725,0.23139,3307.7,3306.2,3.0]
[1721006382128,0.23139,3307.7,3306.3,0.06019086]
[1721006382549,0.07558879,3308.7,3306.3,0.06019086]
[1721006382866,0.117552,3309.0,3307.7,2.7209]
[1721006383053,0.117552,3309.0,3307.8,2.78093629]
[1721006383364,0.117552,3309.0,3307.9,2.72075]
[1721006383575,0.117552,3309.0,3307.9,7.8205]
[1721006383870,0.117552,3309.0,3307.9,7.88059102]
[1721006384559,0.117552,3309.0,3307.9,10.60134102]
[1721006384760,0.117552,3309.0,3308.4,1.829]
[1721006384964,0.117552,3309.0,3308.6,4.54916]
[1721006385128,0.117552,3309.0,3308.7,0.0600717]
[1721006385328,5.968423,3308.9,3307.9,2.72068]
[1721006385663,0.31037606,3309.0,3307.5,2.72101]
[1721006385877,0.31037606,3309.0,3308.0,0.06010579]
[1721006386031,9.629416,3308.9,3308.0,0.06010579]
[1721006386546,9.629416,3308.9,3307.5,0.06011878]
[1721006386728,2.3586,3308.7,3307.2,2.72126]
[1721006386928,0.117552,3309.0,3307.3,0.06013197]
[1721006387132,0.117552,3309.0,3307.8,2.72083]
[1721006387363,0.117552,3309.0,3307.9,0.06008697]
[1721006388484,0.117552,3309.0,3308.1,1.829]
[1721006388636,0.117552,3309.0,3308.2,0.0600847]
[1721006388848,0.117552,3309.0,3308.3,0.06008921]
[1721006389596,0.117552,3309.0,3308.1,1.829]
[1721006389764,0.117552,3309.0,3308.1,4.60966633]
[1721006389955,0.117552,3309.0,3308.2,2.72049]
[1721006390150,0.117552,3309.0,3308.3,0.06008595]
[1721006390395,0.117552,3309.0,3308.0,2.72063]
[1721006390565,0.117552,3309.0,3308.1,0.61008659]
[1721006390767,0.31037606,3309.0,3308.1,0.61008659]
[1721006390972,0.31037606,3309.0,3308.0,0.06009328]
[1721006391296,0.31037606,3309.0,3307.6,0.0600958]
[1721006391506,0.31037606,3309.0,3306.6,2.659]
[1721006391507,9.9460851,3308.9,3307.7,0.06011749]
[1721006391711,9.9460851,3308.9,3307.3,0.06013227]
[1721006391712,9.629416,3308.8,3307.3,0.06013227]
[1721006391864,3.43220851,3308.7,3307.2,0.06013227]
[1721006392174,2.4376,3308.7,3307.1,0.06013932]
[1721006393072,2.4376,3308.7,3306.9,1.829]
[1721006393073,2.4376,3308.7,3306.9,1.88914478]
[1721006393282,2.4376,3308.7,3306.9,0.06014478]
[1721006393483,2.51317922,3308.7,3306.4,0.06016789]
[1721006393775,2.51317922,3308.7,3306.5,1.829]
[1721006393989,3.55131792,3308.6,3306.5,1.829]
[1721006394216,0.07558152,3308.5,3306.5,1.829]
[1721006394565,0.07558152,3308.5,3306.4,0.06016789]
[1721006394765,2.3719,3308.4,3306.3,0.06017344]
[1721006395004,0.07558634,3308.3,3306.3,0.06017344]
[1721006395204,0.24474863,3308.2,3306.3,0.06017344]
[1721006395506,0.24474863,3308.2,3305.1,6.23205]
[1721006395507,2.449,3308.0,3304.5,2.2993]
[1721006395708,0.24474863,3308.2,3304.5,2.2993]
[1721006395709,2.449,3307.8,3305.5,2.72273]
[1721006396071,2.449,3307.6,3305.5,2.78295822]
[1721006396438,2.449,3307.2,3305.0,2.72313]
[1721006396729,0.29237774,3307.1,3305.1,0.06025109]
[1721006397072,2.45001442,3307.0,3305.0,0.06025238]
[1721006397385,5.45001442,3307.0,3304.9,1.88925608]
[1721006397598,5.45001442,3307.0,3304.6,2.78370015]
[1721006397786,2.2583,3306.9,3304.6,2.78370015]
[1721006397990,2.2583,3306.9,3304.6,1.88926015]
[1721006397991,0.07562311,3306.8,3304.6,1.88926015]
[1721006398198,0.07562311,3306.8,3303.7,3.615]
[1721006398199,2.2583,3306.6,3304.0,2.72392]
[1721006398411,0.60901542,3306.7,3304.0,2.72392]